fUST/lending_fUST_20260227
["ID","MTS","AMOUNT","RATE_DAILY","PERIOD"]
[406742816,1772136639483,-184.272,0.00014768,2]
[406742817,1772136639492,-160.4739049,0.00014795,2]
[406742818,1772136639502,-288.85302882,0.00014795,2]
[406742819,1772136639512,-513.51649567,0.00014795,2]
[406742820,1772136639522,-375.32554961,0.00014795,2]
[406742821,1772136639531,-374.62236085,0.00014795,2]
[406742822,1772136639541,-423.68654146,0.00014795,2]
[406742823,1772136639550,-170.0,0.000149,2]
[406742824,1772136639559,-75330.952194,0.00014912,2]
[406742825,1772136639568,-1671.3003979,0.00014912,2]
[406742826,1772136639578,-151.0,0.00014912,2]
[406742827,1772136639587,-585.69394364,0.00014916,2]
[406742828,1772136639596,-548.28733853,0.00014916,2]
[406742829,1772136639606,-1000.0,0.00014917,2]
[406742830,1772136639615,-244.0,0.00014917,2]
[406742831,1772136639625,-200.0,0.00014959,2]
[406742832,1772136639635,-347.62883463,0.00014964,2]
[406742890,1772136642982,-2653.55076911,0.00013543,2]
[406742893,1772136642999,-500.0,0.00013902,2]
[406742895,1772136643015,-500.0,0.00013902,2]
[406742898,1772136643032,-500.0,0.00013902,2]
[406742901,1772136643049,-500.0,0.00013902,2]
[406742903,1772136643063,-500.0,0.00013902,2]
[406742906,1772136643078,-500.0,0.00013902,2]
[406742909,1772136643094,-500.0,0.00013902,2]
[406742911,1772136643108,-500.0,0.00013902,2]
[406742914,1772136643123,-500.0,0.00013902,2]
[406742917,1772136643139,-600.0,0.00014179,2]
[406742919,1772136643156,-124703.95095798,0.00014964,2]
[406742922,1772136643172,-151.0,0.00014964,2]
[406742925,1772136643187,-487.0,0.00014964,2]
[406742927,1772136643202,-487.0,0.00014964,2]
[406742930,1772136643217,-487.0,0.00014964,2]
[406742932,1772136643233,-487.0,0.00014964,2]
[406742935,1772136643248,-487.0,0.00014964,2]
[406742938,1772136643263,-487.0,0.00014964,2]
[406742940,1772136643278,-487.0,0.00014964,2]
[406742943,1772136643292,-487.0,0.00014964,2]
[406742945,1772136643307,-487.0,0.00014964,2]
[406742948,1772136643322,-487.0,0.00014964,2]
[406742950,1772136643337,-487.0,0.00014964,2]
[406742953,1772136643355,-487.0,0.00014964,2]
[406742956,1772136643370,-487.0,0.00014964,2]
[406742958,1772136643387,-487.0,0.00014964,2]
[406742961,1772136643403,-487.0,0.00014964,2]
[406742964,1772136643417,-487.0,0.00014964,2]
[406742966,1772136643433,-487.0,0.00014964,2]
[406742968,1772136643447,-487.0,0.00014964,2]
[406742971,1772136643463,-487.0,0.00014964,2]
[406742974,1772136643478,-487.0,0.00014964,2]
[406742977,1772136643493,-649.61,0.00014964,2]
[406742979,1772136643508,-176.032219,0.00014972,2]
[406742982,1772136643522,-87132.39555868,0.00015,2]
[406742984,1772136643536,-12270.56329112,0.00015,2]
[406742987,1772136643551,-151.8217391,0.00015,2]
[406742989,1772136643566,-151.0,0.00015,2]
[406742992,1772136643580,-151.0,0.00015,2]
[406742994,1772136643595,-191.3892943,0.00015068,2]
[406742997,1772136643610,-1888.419062,0.00015078,2]
[406743000,1772136643624,-1024.05104728,0.0001508,2]
[406743002,1772136643639,-587.0,0.0001518,2]
[406743005,1772136643654,-354.63257065,0.00015442,5]
[406743007,1772136643668,-880.65397902,0.00015529,2]
[406743010,1772136643682,-176.032219,0.00015532,2]
[406743012,1772136643697,-150.0,0.00015534,2]
[406743015,1772136643714,-227.745,0.00015534,2]
[406743018,1772136643728,-150.572,0.00015534,2]
[406743020,1772136643743,-250.0,0.00015534,2]
[406743023,1772136643758,-150.0,0.00015534,2]
[406743026,1772136643773,-150.0,0.00015534,2]
[406743028,1772136643788,-637.0,0.00015534,2]
[406743031,1772136643803,-1386.0,0.00015534,2]
[406743034,1772136643818,-2181.0,0.00015534,2]
[406743036,1772136643833,-728.0,0.00015534,2]
[406743039,1772136643848,-437.598,0.00015534,2]
[406743041,1772136643863,-544.16,0.00015534,2]
[406743044,1772136643878,-720.0,0.00015597,2]
[406743046,1772136643892,-4006.51374375,0.000156,2]
[406743049,1772136643907,-338.0,0.0001562,2]
[406743052,1772136643922,-466.40871835,0.0001562,2]
[406743054,1772136643938,-228.10570077,0.0001562,2]
[406743057,1772136643955,-5000.0,0.0001564,2]
[406743060,1772136643971,-223.0,0.00015662,2]
[406743062,1772136643983,-376.36909558,0.0001567,2]
[406743064,1772136643996,-1095.97526162,0.000157,30]
[406743066,1772136644007,-1338.86,0.000157,2]
[406743068,1772136644016,-5236.62069682,0.000157,2]
[406743070,1772136644026,-223.0,0.00015707,2]
[406743072,1772136644036,-223.0,0.0001574,2]
[406743074,1772136644046,-269664.96325119,0.0001585,2]
[406743076,1772136644056,-234.158943,0.00015997,2]
[406743078,1772136644066,-1334.39210518,0.00016008,2]
[406743080,1772136644076,-223.0,0.00016013,2]
[406743082,1772136644085,-176.032219,0.00016092,2]
[406743084,1772136644094,-176885.941573,0.00016172,2]
[406743115,1772136645754,-168.97195614,0.00013902,2]
[406743116,1772136645764,-500.0,0.00013902,2]
[406743117,1772136645773,-500.0,0.00013902,2]
[406743118,1772136645783,-500.0,0.00013902,2]
[406743119,1772136645793,-500.0,0.00013902,2]
[406743120,1772136645802,-95342.77515028,0.00016172,2]
[406743122,1772136645821,-32743.96365434,0.00016172,2]
[406743130,1772137598123,-281.09272718,0.00011527,2]
[406743131,1772137598360,-17.3275229,0.00011643,2]
[406743184,1772137838090,-1495.28597355,0.00011585,2]
[406743185,1772137838100,-585.0,0.00011702,2]
[406743186,1772137838110,-224.37213043,0.00011761,2]
[406743187,1772137838121,-5162.08711878,0.00012,2]
[406743188,1772137838130,-300.0,0.00012406,2]
[406743189,1772137838140,-1200.0,0.00012406,2]
[406743190,1772137838149,-300.0,0.00012407,2]
[406743191,1772137838158,-300.0,0.00012407,2]
[406743192,1772137838167,-300.0,0.00012407,2]
[406743193,1772137838176,-7539.3371702,0.00012409,2]
[406743194,1772137838186,-161.22113174,0.00013435,2]
[406743195,1772137838402,-420.0,0.00013613,2]
[406743196,1772137838418,-264.75911391,0.00013761,2]
[406743197,1772137838427,-200.0,0.0001389,2]
[406743198,1772137838437,-190.95531595,0.0001395,2]
[406743199,1772137838446,-500.0,0.00014042,2]
[406743200,1772137838455,-500.0,0.00014042,2]
[406743201,1772137838465,-500.0,0.00014042,2]
[406743202,1772137838474,-500.0,0.00014042,2]
[406743203,1772137838483,-500.0,0.00014042,2]
[406743204,1772137838493,-500.0,0.00014042,2]
[406743205,1772137838502,-500.0,0.00014042,2]
[406743206,1772137838512,-500.0,0.00014042,2]
[406743207,1772137838521,-500.0,0.00014042,2]
[406743208,1772137838530,-500.0,0.00014042,2]
[406743209,1772137838540,-500.0,0.00014042,2]
[406743210,1772137838549,-385.42789508,0.00014042,2]
[406743211,1772137838558,-500.0,0.00014042,2]
[406743212,1772137838567,-500.0,0.00014042,2]
[406743213,1772137838576,-431.92247047,0.00014042,2]
[406743214,1772137838587,-500.0,0.00014042,2]
[406743215,1772137838596,-500.0,0.00014042,2]
[406743216,1772137838605,-500.0,0.00014042,2]
[406743217,1772137838614,-500.0,0.00014042,2]
[406743218,1772137838623,-500.0,0.00014042,2]
[406743219,1772137838633,-500.0,0.00014042,2]
[406743220,1772137838642,-500.0,0.00014042,2]
[406743221,1772137838651,-500.0,0.00014042,2]
[406743222,1772137838660,-500.0,0.00014042,2]
[406743223,1772137838669,-500.0,0.00014042,2]
[406743224,1772137838678,-500.0,0.00014042,2]
[406743225,1772137838687,-500.0,0.00014042,2]
[406743226,1772137838700,-500.0,0.00014042,2]
[406743227,1772137838710,-500.0,0.00014042,2]
[406743228,1772137838719,-500.0,0.00014042,2]
[406743229,1772137838729,-500.0,0.00014042,2]
[406743230,1772137838739,-500.0,0.00014042,2]
[406743231,1772137838748,-500.0,0.00014042,2]
[406743232,1772137838758,-500.0,0.00014042,2]
[406743233,1772137838769,-500.0,0.00014042,2]
[406743234,1772137838778,-500.0,0.00014042,2]
[406743235,1772137838788,-500.0,0.00014042,2]
[406743236,1772137838798,-356.4158502,0.00014042,2]
[406743237,1772137838808,-500.0,0.00014042,2]
[406743238,1772137838817,-500.0,0.00014042,2]
[406743239,1772137838827,-500.0,0.00014042,2]
[406743240,1772137838836,-500.0,0.00014042,2]
[406743241,1772137838845,-500.0,0.00014042,2]
[406743242,1772137838855,-500.0,0.00014042,2]
[406743243,1772137838865,-500.0,0.00014042,2]
[406743244,1772137838874,-500.0,0.00014042,2]
[406743245,1772137838883,-500.0,0.00014042,2]
[406743246,1772137838894,-500.0,0.00014042,2]
[406743247,1772137838903,-500.0,0.00014042,2]
[406743248,1772137838913,-500.0,0.00014042,2]
[406743249,1772137838922,-500.0,0.00014042,2]
[406743250,1772137838932,-500.0,0.00014042,2]
[406743251,1772137838942,-500.0,0.00014042,2]
[406743252,1772137838951,-500.0,0.00014042,2]
[406743253,1772137838961,-500.0,0.00014042,2]
[406743254,1772137838970,-500.0,0.00014042,2]
[406743255,1772137838981,-500.0,0.00014042,2]
[406743256,1772137838991,-500.0,0.00014042,2]
[406743257,1772137839001,-500.0,0.00014042,2]
[406743258,1772137839010,-500.0,0.00014042,2]
[406743259,1772137839019,-500.0,0.00014042,2]
[406743260,1772137839029,-500.0,0.00014042,2]
[406743261,1772137839038,-500.0,0.00014042,2]
[406743262,1772137839047,-500.0,0.00014042,2]
[406743263,1772137839056,-500.0,0.00014042,2]
[406743264,1772137839065,-500.0,0.00014042,2]
[406743265,1772137839075,-500.0,0.00014042,2]
[406743266,1772137839086,-500.0,0.00014042,2]
[406743267,1772137839096,-500.0,0.00014042,2]
[406743268,1772137839105,-500.0,0.00014042,2]
[406743269,1772137839114,-500.0,0.00014042,2]
[406743270,1772137839123,-500.0,0.00014042,2]
[406743271,1772137839132,-516.39590848,0.00014042,2]
[406743272,1772137839142,-500.0,0.00014042,2]
[406743273,1772137839152,-500.0,0.00014042,2]
[406743274,1772137839161,-500.0,0.00014042,2]
[406743275,1772137839171,-500.0,0.00014042,2]
[406743276,1772137839180,-500.0,0.00014042,2]
[406743277,1772137839190,-500.0,0.00014042,2]
[406743278,1772137839200,-500.0,0.00014042,2]
[406743279,1772137839209,-500.0,0.00014042,2]
[406743280,1772137839218,-500.0,0.00014042,2]
[406743281,1772137839228,-500.0,0.00014042,2]
[406743282,1772137839237,-500.0,0.00014042,2]
[406743283,1772137839246,-875.9333017,0.00014042,2]
[406743284,1772137839256,-875.9333017,0.00014042,2]
[406743285,1772137839265,-875.9333017,0.00014042,2]
[406743286,1772137839274,-875.9333017,0.00014042,2]
[406743287,1772137839283,-875.9333017,0.00014042,2]
[406743288,1772137839293,-875.9333017,0.00014042,2]
[406743289,1772137839302,-875.9333017,0.00014042,2]
[406743290,1772137839312,-875.9333017,0.00014042,2]
[406743291,1772137839323,-875.9333017,0.00014042,2]
[406743292,1772137839333,-875.9333017,0.00014042,2]
[406743293,1772137839342,-875.9333017,0.00014042,2]
[406743294,1772137839352,-875.9333017,0.00014042,2]
[406743295,1772137839362,-875.9333017,0.00014042,2]
[406743296,1772137839371,-875.9333017,0.00014042,2]
[406743297,1772137839380,-875.9333017,0.00014042,2]
[406743298,1772137839389,-875.9333017,0.00014042,2]
[406743299,1772137839399,-875.9333017,0.00014042,2]
[406743300,1772137839409,-875.9333017,0.00014042,2]
[406743301,1772137839418,-875.9333017,0.00014042,2]
[406743302,1772137839428,-875.9333017,0.00014042,2]
[406743303,1772137839438,-875.9333017,0.00014042,2]
[406743304,1772137839447,-875.9333017,0.00014042,2]
[406743305,1772137839457,-875.9333017,0.00014042,2]
[406743306,1772137839466,-875.9333017,0.00014042,2]
[406743307,1772137839475,-875.9333017,0.00014042,2]
[406743308,1772137839485,-516.78284235,0.00014042,2]
[406743309,1772137839494,-875.9333017,0.00014042,2]
[406743310,1772137839504,-516.78284235,0.00014042,2]
[406743311,1772137839513,-875.9333017,0.00014042,2]
[406743312,1772137839522,-516.78284235,0.00014042,2]
[406743313,1772137839532,-875.9333017,0.00014042,2]
[406743314,1772137839541,-875.9333017,0.00014042,2]
[406743315,1772137839550,-516.78284235,0.00014042,2]
[406743316,1772137839559,-875.9333017,0.00014042,2]
[406743317,1772137839569,-516.78284235,0.00014042,2]
[406743318,1772137839578,-875.9333017,0.00014042,2]
[406743319,1772137839588,-516.78284235,0.00014042,2]
[406743320,1772137839598,-875.9333017,0.00014042,2]
[406743321,1772137839607,-516.78284235,0.00014042,2]
[406743322,1772137839617,-875.9333017,0.00014042,2]
[406743323,1772137839627,-516.78284235,0.00014042,2]
[406743324,1772137839636,-875.9333017,0.00014042,2]
[406743325,1772137839646,-516.78284235,0.00014042,2]
[406743326,1772137839655,-875.9333017,0.00014042,2]
[406743327,1772137839665,-516.78284235,0.00014042,2]
[406743328,1772137839674,-875.9333017,0.00014042,2]
[406743329,1772137839684,-516.78284235,0.00014042,2]
[406743330,1772137839696,-875.9333017,0.00014042,2]
[406743331,1772137839705,-875.9333017,0.00014042,2]
[406743332,1772137839715,-516.78284235,0.00014042,2]
[406743333,1772137839724,-875.9333017,0.00014042,2]
[406743334,1772137839733,-516.78284235,0.00014042,2]
[406743335,1772137839742,-582.75175651,0.00014042,2]
[406743336,1772137839758,-293.18154519,0.00014042,2]
[406743337,1772137839769,-875.9333017,0.00014042,2]
[406743338,1772137839779,-516.78284235,0.00014042,2]
[406743339,1772137839790,-516.78284235,0.00014042,2]
[406743340,1772137839800,-875.9333017,0.00014042,2]
[406743341,1772137839810,-131.41829153,0.00014042,2]
[406743342,1772137839821,-385.36455082,0.00014042,2]
[406743343,1772137839831,-875.9333017,0.00014042,2]
[406743344,1772137839840,-516.78284235,0.00014042,2]
[406743345,1772137839850,-875.9333017,0.00014042,2]
[406743346,1772137839859,-516.78284235,0.00014042,2]
[406743347,1772137839868,-25.15458944,0.00014042,2]
[406743423,1772137843713,-1047.85282385,0.00013435,2]
[406743430,1772137844817,-500.0,0.00014041,2]
[406743431,1772137844827,-311.26951758,0.00014041,2]
[406743432,1772137844837,-491.62825291,0.00014042,2]
[406743433,1772137844847,-516.78284235,0.00014042,2]
[406743434,1772137844856,-875.9333017,0.00014042,2]
[406743435,1772137844866,-516.78284235,0.00014042,2]
[406743436,1772137844875,-516.78284235,0.00014042,2]
[406743437,1772137844884,-516.78284235,0.00014042,2]
[406743438,1772137844894,-875.9333017,0.00014042,2]
[406743439,1772137844903,-516.78284235,0.00014042,2]
[406743440,1772137844913,-875.9333017,0.00014042,2]
[406743441,1772137844923,-516.78284235,0.00014042,2]
[406743442,1772137844932,-875.9333017,0.00014042,2]
[406743443,1772137844942,-516.78284235,0.00014042,2]
[406743444,1772137844951,-875.9333017,0.00014042,2]
[406743445,1772137844960,-875.9333017,0.00014042,2]
[406743446,1772137844969,-516.78284235,0.00014042,2]
[406743447,1772137844979,-875.9333017,0.00014042,2]
[406743448,1772137844988,-875.9333017,0.00014042,2]
[406743449,1772137844997,-516.78284235,0.00014042,2]
[406743450,1772137845006,-516.78284235,0.00014042,2]
[406743451,1772137845016,-516.78284235,0.00014042,2]
[406743452,1772137845025,-516.78284235,0.00014042,2]
[406743453,1772137845034,-516.78284235,0.00014042,2]
[406743454,1772137845044,-875.9333017,0.00014042,2]
[406743455,1772137845053,-516.78284235,0.00014042,2]
[406743456,1772137845063,-875.9333017,0.00014042,2]
[406743457,1772137845072,-875.9333017,0.00014042,2]
[406743458,1772137845082,-875.9333017,0.00014042,2]
[406743459,1772137845091,-516.78284235,0.00014042,2]
[406743460,1772137845101,-875.9333017,0.00014042,2]
[406743461,1772137845110,-516.78284235,0.00014042,2]
[406743462,1772137845120,-875.9333017,0.00014042,2]
[406743463,1772137845131,-516.78284235,0.00014042,2]
[406743464,1772137845140,-875.9333017,0.00014042,2]
[406743465,1772137845151,-516.78284235,0.00014042,2]
[406743466,1772137845170,-516.78284235,0.00014042,2]
[406743467,1772137845192,-875.9333017,0.00014042,2]
[406743468,1772137845208,-516.78284235,0.00014042,2]
[406743469,1772137845221,-516.78284235,0.00014042,2]
[406743470,1772137845233,-516.78284235,0.00014042,2]
[406743471,1772137845242,-516.78284235,0.00014042,2]
[406743472,1772137845253,-516.78284235,0.00014042,2]
[406743473,1772137845264,-516.78284235,0.00014042,2]
[406743474,1772137845277,-516.78284235,0.00014042,2]
[406743475,1772137845288,-516.78284235,0.00014042,2]
[406743476,1772137845300,-516.78284235,0.00014042,2]
[406743477,1772137845310,-516.78284235,0.00014042,2]
[406743478,1772137845321,-516.78284235,0.00014042,2]
[406743479,1772137845331,-516.78284235,0.00014042,2]
[406743480,1772137845342,-516.78284235,0.00014042,2]
[406743481,1772137845351,-516.78284235,0.00014042,2]
[406743482,1772137845360,-516.78284235,0.00014042,2]
[406743483,1772137845370,-516.78284235,0.00014042,2]
[406743484,1772137845379,-516.78284235,0.00014042,2]
[406743485,1772137845388,-516.78284235,0.00014042,2]
[406743486,1772137845405,-542.70826717,0.00014042,2]
[406743487,1772137845414,-542.70826717,0.00014042,2]
[406743488,1772137845423,-1024.35388562,0.00014042,2]
[406743489,1772137845433,-1024.35388562,0.00014042,2]
[406743490,1772137845442,-542.70826717,0.00014042,2]
[406743491,1772137845451,-1024.35388562,0.00014042,2]
[406743492,1772137845460,-542.70826717,0.00014042,2]
[406743493,1772137845470,-1024.35388562,0.00014042,2]
[406743495,1772137845479,-542.70826717,0.00014042,2]
[406743496,1772137845488,-1024.35388562,0.00014042,2]
[406743497,1772137845496,-542.70826717,0.00014042,2]
[406743498,1772137845505,-1024.35388562,0.00014042,2]
[406743499,1772137845514,-542.70826717,0.00014042,2]
[406743500,1772137845523,-1024.35388562,0.00014042,2]
[406743501,1772137845533,-542.70826717,0.00014042,2]
[406743502,1772137845542,-1024.35388562,0.00014042,2]
[406743503,1772137845551,-542.70826717,0.00014042,2]
[406743504,1772137845560,-1024.35388562,0.00014042,2]
[406743505,1772137845569,-542.70826717,0.00014042,2]
[406743506,1772137845578,-1024.35388562,0.00014042,2]
[406743507,1772137845587,-542.70826717,0.00014042,2]
[406743508,1772137845596,-1024.35388562,0.00014042,2]
[406743509,1772137845604,-542.70826717,0.00014042,2]
[406743510,1772137845613,-1024.35388562,0.00014042,2]
[406743511,1772137845623,-542.70826717,0.00014042,2]
[406743512,1772137845632,-1024.35388562,0.00014042,2]
[406743513,1772137845641,-542.70826717,0.00014042,2]
[406743514,1772137845650,-1024.35388562,0.00014042,2]
[406743515,1772137845659,-542.70826717,0.00014042,2]
[406743516,1772137845668,-1024.35388562,0.00014042,2]
[406743517,1772137845677,-542.70826717,0.00014042,2]
[406743518,1772137845687,-1024.35388562,0.00014042,2]
[406743519,1772137845698,-542.70826717,0.00014042,2]
[406743520,1772137845707,-1024.35388562,0.00014042,2]
[406743521,1772137845884,-542.70826717,0.00014042,2]
[406743522,1772137845899,-1024.35388562,0.00014042,2]
[406743523,1772137845909,-542.70826717,0.00014042,2]
[406743524,1772137845919,-1024.35388562,0.00014042,2]
[406743525,1772137845929,-542.70826717,0.00014042,2]
[406743526,1772137845939,-1024.35388562,0.00014042,2]
[406743527,1772137845959,-542.70826717,0.00014042,2]
[406743528,1772137845969,-1024.35388562,0.00014042,2]
[406743529,1772137845978,-542.70826717,0.00014042,2]
[406743530,1772137845989,-1024.35388562,0.00014042,2]
[406743531,1772137846009,-542.70826717,0.00014042,2]
[406743532,1772137846025,-542.70826717,0.00014042,2]
[406743533,1772137846034,-542.70826717,0.00014042,2]
[406743534,1772137846048,-100.7325979,0.00014042,2]
[406743535,1772137846585,-441.97566927,0.00014042,2]
[406743536,1772137846595,-1024.35388562,0.00014042,2]
[406743537,1772137846605,-542.70826717,0.00014042,2]
[406743538,1772137846617,-1024.35388562,0.00014042,2]
[406743539,1772137846627,-542.70826717,0.00014042,2]
[406743540,1772137846638,-131.70002513,0.00014042,2]
[406743541,1772137846906,-640.99757,0.00014042,2]
[406743570,1772139038189,-424.46,0.00012329,2]
[406743571,1772139038199,-353.72,0.00012329,2]
[406743572,1772139038209,-294.76,0.00012329,2]
[406743573,1772139038218,-410.3426859,0.00012819,2]
[406743574,1772139038879,-3361.34048513,0.00012819,2]
[406743575,1772139038888,-221.40060169,0.0001303,2]
[406743576,1772139038899,-479.45245464,0.00013699,2]
[406743577,1772139038915,-520.54754536,0.00013699,2]
[406743578,1772139038924,-349.5713597,0.00013699,2]
[406743579,1772139038934,-500.0,0.00013699,2]
[406743580,1772139038943,-500.0,0.00013775,2]
[406743581,1772139038952,-150.0,0.00013775,2]
[406743582,1772139038962,-500.0,0.0001383,2]
[406743583,1772139038972,-280.20725643,0.0001383,2]
[406743584,1772139038981,-421.67522977,0.00013885,2]
[406743589,1772139040589,-78.32477023,0.00013885,2]
[406743590,1772139040599,-500.0,0.00013939,2]
[406743591,1772139040609,-2171.72029977,0.00013947,2]
[406743592,1772139040644,-490.33925867,0.00013947,2]
[406743605,1772139043622,-220.57022217,0.00013947,2]
[406743606,1772139043632,-98.2036274,0.00013994,2]
[406743607,1772139043680,-407.70834904,0.00013994,2]
[406743608,1772139043690,-500.0,0.00014046,2]
[406743609,1772139043700,-500.0,0.00014046,2]
[406743610,1772139043709,-500.0,0.00014046,2]
[406743611,1772139043719,-500.0,0.00014046,2]
[406743612,1772139043729,-500.0,0.00014046,2]
[406743613,1772139043738,-500.0,0.00014046,2]
[406743614,1772139043748,-500.0,0.00014046,2]
[406743615,1772139043757,-500.0,0.00014046,2]
[406743616,1772139043767,-500.0,0.00014046,2]
[406743617,1772139043777,-500.0,0.00014046,2]
[406743618,1772139043786,-500.0,0.00014046,2]
[406743619,1772139043795,-500.0,0.00014046,2]
[406743620,1772139043804,-500.0,0.00014046,2]
[406743621,1772139043814,-500.0,0.00014046,2]
[406743622,1772139043824,-500.0,0.00014046,2]
[406743623,1772139043833,-45.80909207,0.00014046,2]
[406743624,1772139043852,-454.19090793,0.00014046,2]
[406743625,1772139043862,-500.0,0.00014046,2]
[406743626,1772139043872,-500.0,0.00014046,2]
[406743627,1772139043881,-29.09177797,0.00014046,2]
[406743641,1772139046073,-470.90822203,0.00014046,2]
[406743642,1772139046083,-500.0,0.00014046,2]
[406743643,1772139046092,-500.0,0.00014046,2]
[406743644,1772139046102,-212.84177797,0.00014046,2]
[406743700,1772140232257,-467.52642622,0.00011376,2]
[406743707,1772140232314,-4337.08105687,0.00011376,2]
[406743709,1772140232324,-256.27041632,0.00011434,2]
[406743711,1772140232333,-501.51528959,0.00011491,2]
[406743714,1772140232342,-1388.8977851,0.00011906,2]
[406743716,1772140232352,-886.57422122,0.00012327,2]
[406743719,1772140232364,-313.42577878,0.00012327,2]
[406743721,1772140232373,-245.64,0.00012329,2]
[406743723,1772140232386,-204.7,0.00012329,2]
[406743725,1772140232398,-170.58,0.00012329,2]
[406743727,1772140232408,-852.92,0.00012329,2]
[406743729,1772140232419,-300.0,0.00012906,2]
[406743731,1772140232431,-42.17431877,0.00012907,2]
[406743799,1772140238450,-164.32,0.00012329,2]
[406743801,1772140238461,-257.82568123,0.00012907,2]
[406743803,1772140238470,-8841.37234798,0.00012907,2]
[406743805,1772140238479,-7278.7649844,0.00013,2]
[406743807,1772140238489,-500.0,0.00013273,2]
[406743809,1772140238498,-500.0,0.00013273,2]
[406743811,1772140238508,-500.0,0.00013273,2]
[406743813,1772140238517,-500.0,0.00013273,2]
[406743815,1772140238526,-470.10045035,0.00013273,2]
[406743817,1772140238535,-314.20889447,0.00013273,2]
[406743819,1772140238545,-500.0,0.00013273,2]
[406743821,1772140238554,-500.0,0.00013273,2]
[406743823,1772140238563,-500.0,0.00013273,2]
[406743825,1772140238572,-564.72806545,0.00013273,2]
[406743827,1772140238581,-500.0,0.00013273,2]
[406743829,1772140238590,-500.0,0.00013273,2]
[406743831,1772140238599,-500.0,0.00013273,2]
[406743833,1772140238608,-500.0,0.00013273,2]
[406743835,1772140238617,-500.0,0.00013273,2]
[406743837,1772140238627,-500.0,0.00013273,2]
[406743838,1772140238637,-391.1335569,0.00013273,2]
[406743840,1772140238646,-302.39909126,0.00013434,2]
[406743842,1772140238656,-857.43190103,0.0001346,2]
[406743845,1772140238667,-213.21897015,0.00013518,2]
[406743846,1772140238677,-1680.0,0.0001356,2]
[406743848,1772140238686,-500.0,0.0001356,2]
[406743850,1772140238695,-500.0,0.0001356,2]
[406743852,1772140238705,-500.0,0.0001356,2]
[406743854,1772140238715,-500.0,0.0001356,2]
[406743856,1772140238724,-500.0,0.0001356,2]
[406743858,1772140238734,-500.0,0.0001356,2]
[406743860,1772140238744,-500.0,0.0001356,2]
[406743862,1772140238754,-500.0,0.0001356,2]
[406743864,1772140238763,-500.0,0.0001356,2]
[406743866,1772140238773,-500.0,0.0001356,2]
[406743867,1772140238782,-500.0,0.0001356,2]
[406743870,1772140238792,-500.0,0.0001356,2]
[406743871,1772140238801,-500.0,0.0001356,2]
[406743873,1772140238810,-500.0,0.0001356,2]
[406743875,1772140238819,-500.0,0.0001356,2]
[406743877,1772140238828,-500.0,0.0001356,2]
[406743879,1772140238838,-500.0,0.0001356,2]
[406743881,1772140238847,-500.0,0.0001356,2]
[406743883,1772140238856,-500.0,0.0001356,2]
[406743885,1772140238865,-500.0,0.0001356,2]
[406743887,1772140238875,-500.0,0.0001356,2]
[406743889,1772140238884,-500.0,0.0001356,2]
[406743891,1772140238894,-500.0,0.0001356,2]
[406743893,1772140238903,-500.0,0.0001356,2]
[406743895,1772140238913,-500.0,0.0001356,2]
[406743897,1772140238924,-500.0,0.0001356,2]
[406743899,1772140238933,-288.12829607,0.0001356,2]
[406743901,1772140238943,-568.26081653,0.0001356,2]
[406743903,1772140238952,-500.0,0.0001356,2]
[406743905,1772140238961,-500.0,0.0001356,2]
[406743907,1772140238972,-500.0,0.0001356,2]
[406743909,1772140238984,-500.0,0.0001356,2]
[406743911,1772140238993,-500.0,0.0001356,2]
[406743913,1772140239003,-500.0,0.0001356,2]
[406743915,1772140239013,-397.95438901,0.0001356,2]
[406743917,1772140239027,-102.04561099,0.0001356,2]